bitfinex-derivatives/quotes_SOLF0:USTF0_20251207
["timestamp","ask_amount","ask_price","bid_price","bid_amount"]
[1765130865282,6.6417,135.5,135.48,0.0519397]
[1765130865800,6.6436,135.46,135.43,3.34]
[1765130866994,6.69855781,135.46,135.43,3.3934979]
[1765130867296,0.05495781,135.46,135.43,3.3934979]
[1765130869301,0.05495781,135.46,135.43,0.0534979]
[1765130870197,6.6442,135.45,135.43,0.0534979]
[1765130871097,0.05495781,135.46,135.43,3.1534979]
[1765130871603,63.7,135.52,135.43,3.1534979]
[1765130871795,63.7,135.52,135.43,3.1]
[1765130872488,6.6413,135.51,135.45,3.1]
[1765130872693,6.6413,135.51,135.47,3.15168338]
[1765130874796,2.21757113,135.5,135.47,3.15168338]
[1765130876304,8.85927113,135.5,135.47,3.15168338]
[1765130876494,2.21757113,135.48,135.47,0.05168338]
[1765130879307,2.21757113,135.48,135.4,169.30327113]
[1765130879308,2.21757113,135.48,135.41,3.1]
[1765130879802,2.21757113,135.46,135.41,3.1]
[1765130880506,0.04708817,135.45,135.43,3.1]
[1765130881204,0.04708817,135.45,135.42,0.05573768]
[1765130882399,6.6447,135.44,135.42,0.05573768]
[1765130882998,6.646,135.41,135.37,3.23]
[1765130883708,6.6452,135.43,135.37,3.23]
[1765130883894,0.05311473,135.41,135.39,3.2838942]
[1765130884398,0.05311473,135.41,135.39,0.0538942]
[1765130888708,0.05311473,135.41,135.39,3.2838942]
[1765130892814,0.05311473,135.41,135.39,0.0538942]
[1765130895010,0.05311473,135.41,135.39,3.2838942]
[1765130901426,106.78469169,135.5,135.4,3.25]
[1765130901723,106.78469169,135.5,135.37,3.25]
[1765130901724,103.3515,135.45,135.37,3.25]
[1765130901920,6.6452,135.43,135.38,3.25]
[1765130902623,0.05499798,135.42,135.4,3.25]
[1765130905627,0.05499798,135.42,135.39,0.04674048]
[1765130906220,0.05499798,135.42,135.39,3.29674048]
[1765130907124,6.70059798,135.42,135.39,0.04674048]
[1765130907427,6.70059798,135.42,135.39,3.29674048]
[1765130907428,0.05499798,135.42,135.39,3.29674048]
[1765130907622,0.05499798,135.42,135.4,3.25]
[1765130907824,6.6436,135.46,135.4,3.25]
[1765130908229,103.3248,135.49,135.4,3.25]
[1765130908532,6.6432,135.47,135.41,3.25]
[1765130908731,6.6432,135.47,135.43,3.30150155]
[1765130910634,5.67206611,135.46,135.43,0.05150155]
[1765130910830,103.3433,135.46,135.43,0.05150155]
[1765130911036,103.36,135.44,135.36,3.25]
[1765130911230,3.46829169,135.43,135.36,3.25]
[1765130912137,0.05150155,135.41,135.38,3.29742602]
[1765130914636,6.69760155,135.41,135.38,3.29742602]
[1765130919637,6.69760155,135.41,135.38,0.04742602]
[1765130920440,6.69760155,135.41,135.38,3.29742602]
[1765130921042,6.6467,135.4,135.38,0.04742602]
[1765130928843,0.05150155,135.41,135.33,3.33]
[1765130928844,5.72936827,135.39,135.33,3.33]
[1765130929044,170.60609324,135.41,135.33,3.33]
[1765130929045,170.55459169,135.41,135.33,3.33]
[1765130929346,5.72851478,135.4,135.33,3.33]
[1765130929652,167.0863,135.41,135.33,3.33]
[1765130929854,0.05243269,135.38,135.36,3.38111147]
[1765130930552,106.82099169,135.45,135.37,3.33]
[1765130930752,5.72694613,135.44,135.37,3.33]
[1765130930954,5.72694613,135.43,135.37,3.33]
[1765130931250,106.82099169,135.45,135.37,3.33]
[1765130931554,6.69209488,135.42,135.4,0.05357928]
[1765130935357,6.69209488,135.42,135.4,3.38357928]
[1765130937848,6.69209488,135.42,135.4,0.05357928]
[1765130938153,0.04649488,135.42,135.34,9.929]
[1765130938461,6.647,135.39,135.34,3.28]
[1765130939358,0.05154452,135.38,135.35,0.05372337]
[1765130939558,0.05154452,135.38,135.35,3.33372337]
[1765130941252,144.484991,135.47,135.37,3.28]
[1765130941450,5.72600195,135.46,135.37,3.28]
[1765130941659,5.72600195,135.45,135.4,3.28]
[1765130941853,30.78,135.47,135.4,3.28]
[1765130942058,5.72488263,135.46,135.42,3.28]
[1765130942264,0.04852964,135.45,135.44,3.28]
[1765130942759,30.78,135.47,135.45,3.28]
[1765130942956,27.41,135.47,135.45,3.28]
[1765130943354,104.2731,135.53,135.45,3.28]
[1765130943563,5.71715479,135.52,135.45,3.28]
[1765130943766,6.69715479,135.51,135.47,3.33406526]
[1765130944062,0.98,135.49,135.47,0.05406526]
[1765130944752,2.21818686,135.48,135.47,0.05406526]
[1765130946058,0.98,135.47,135.41,3.28]
[1765130946260,2.21818686,135.46,135.41,3.28]
[1765130946459,3.19818686,135.46,135.41,3.28]
[1765130946956,0.05082883,135.45,135.42,3.33078606]
[1765130951069,2.21818686,135.48,135.44,3.28]
[1765130951564,1.03,135.45,135.42,3.33078606]
[1765130951764,2.21818686,135.46,135.42,3.33078606]
[1765130952669,1.03,135.48,135.42,3.33078606]
[1765130952969,2.21818686,135.48,135.42,3.33078606]
[1765130953966,3.24818686,135.48,135.42,3.33078606]
[1765130954468,3.24818686,135.48,135.42,9.97598606]
[1765130954668,3.24818686,135.48,135.43,3.28]
[1765130956067,3.24818686,135.44,135.42,0.05078606]
[1765130957167,2.21818686,135.44,135.42,0.05078606]
[1765130959475,3.24818686,135.45,135.42,3.25078606]
[1765130960668,2.21818686,135.45,135.42,3.25078606]
[1765130961061,3.24818686,135.45,135.42,3.25078606]
[1765130961269,1.03,135.44,135.42,0.05078606]
[1765130961875,3.24818686,135.45,135.42,3.25078606]
[1765130962276,2.21818686,135.45,135.42,3.25078606]
[1765130963070,3.24818686,135.45,135.42,3.25078606]
[1765130965577,1.03,135.44,135.42,0.05078606]
[1765130965879,3.24818686,135.43,135.42,0.05078606]
[1765130970977,2.21818686,135.43,135.42,0.05078606]
[1765130971182,2.21818686,135.43,135.42,3.25078606]
[1765130971682,3.24818686,135.45,135.42,3.25078606]
[1765130972083,1.03,135.44,135.42,0.05078606]
[1765130973581,117.11774397,135.53,135.42,3.25078606]
[1765130973582,3.24818686,135.47,135.42,3.25078606]
[1765130973782,2.21818686,135.47,135.44,3.2]
[1765130975978,3.24818686,135.47,135.44,3.2]
[1765130976583,1.03,135.46,135.43,0.05225592]
[1765130976782,1.03,135.44,135.43,0.05225592]
[1765130978282,3.24818686,135.47,135.43,3.25225592]
[1765130978484,7.92879931,135.5,135.43,3.25225592]
[1765130978791,7.95099624,135.49,135.43,3.25225592]
[1765130979085,2.21818686,135.49,135.45,3.2]
[1765130979676,3.24818686,135.49,135.45,3.2]
[1765130979881,1.03,135.48,135.45,3.2]
[1765130980078,1.03,135.48,135.43,3.25225592]
[1765130980291,3.24818686,135.47,135.43,3.25225592]
[1765130980589,3.24818686,135.47,135.44,3.25413601]
[1765130982288,2.21818686,135.48,135.44,3.25413601]
[1765130982890,1.03,135.47,135.44,3.25413601]
[1765130984689,1.03,135.45,135.44,0.05413601]
[1765130988194,1.03,135.45,135.39,6.6466]
[1765130988393,1.03,135.43,135.39,9.7866]
[1765130988989,0.04837053,135.42,135.4,0.05506831]
[1765130989192,3.29655739,135.42,135.4,0.05506831]
[1765130989397,1.03,135.41,135.4,0.05506831]
[1765130989789,2.26655739,135.42,135.4,0.05506831]
[1765130989790,1.07837053,135.42,135.4,0.05506831]
[1765130999106,0.04837053,135.42,135.4,3.11506831]
[1765130999810,27.23,135.45,135.41,3.06]
[1765131000206,28.26,135.45,135.41,3.06]
[1765131000406,1.03,135.42,135.4,0.05506831]
[1765131001905,37.12238686,135.45,135.4,3.11506831]
[1765131002205,30.47818686,135.45,135.4,3.11506831]
[1765131002810,27.23,135.45,135.41,3.06]
[1765131003309,1.03,135.44,135.4,2.27325517]
[1765131003505,1.03,135.44,135.4,3.11506831]
[1765131003907,1.03,135.44,135.4,0.05506831]
[1765131005714,1.03,135.43,135.4,0.05506831]
[1765131009113,1.03,135.42,135.4,0.05506831]
[1765131009816,1.03,135.44,135.4,3.11506831]
[1765131010215,27.23,135.45,135.43,3.06]
[1765131011516,27.23,135.45,135.44,3.06]
[1765131011910,27.23,135.45,135.43,6.70140839]
[1765131012214,28.26,135.45,135.43,0.05670839]
[1765131012619,27.23,135.45,135.43,0.05670839]
[1765131013327,1.03,135.44,135.43,0.05670839]
[1765131014023,27.23,135.45,135.43,0.05670839]
[1765131014213,27.23,135.45,135.43,3.11670839]
[1765131015618,27.23,135.45,135.43,9.76130839]
[1765131016719,27.23,135.45,135.44,3.06]
[1765131016924,1.03,135.44,135.43,0.05670839]
[1765131017123,28.26,135.45,135.43,0.05670839]
[1765131017626,1.02,135.44,135.43,0.05670839]
[1765131020126,27.23,135.45,135.43,0.05670839]
[1765131020435,27.23,135.45,135.43,3.22670839]
[1765131021627,27.23,135.45,135.44,3.17]
[1765131022130,3.12,135.53,135.48,2.5]
[1765131022319,3.12,135.53,135.49,0.05381508]
[1765131022632,3.12,135.51,135.44,63.62]
[1765131023520,0.05137093,135.49,135.46,0.05539505]
[1765131023725,3.17137093,135.49,135.46,0.05539505]
[1765131028738,3.17137093,135.49,135.39,103.3922]
[1765131028739,3.12,135.48,135.41,6.6456]
[1765131028933,8.84163395,135.47,135.41,6.6456]
[1765131029133,3.12,135.46,135.41,9.1956]
[1765131029432,3.12,135.46,135.42,2.55]
[1765131029638,3.12,135.49,135.42,2.55]
[1765131029828,0.05544765,135.47,135.44,2.60533326]
[1765131030138,3.17254747,135.47,135.44,2.59793198]
[1765131030336,3.17254747,135.47,135.44,9.24213198]
[1765131031238,0.05254747,135.47,135.45,2.55]
[1765131032034,0.05254747,135.47,135.44,9.24213198]
[1765131032440,3.17254747,135.47,135.44,0.04793198]
[1765131034041,0.05254747,135.47,135.44,2.59793198]
[1765131035526,0.05254747,135.47,135.44,9.24223198]
[1765131035726,0.05254747,135.47,135.45,2.55]
[1765131036035,0.05254747,135.47,135.46,2.55]
[1765131037132,3.12,135.52,135.47,2.55]
[1765131038035,3.12,135.53,135.47,2.55]
[1765131038241,3.16720126,135.51,135.48,0.05501368]
[1765131038538,3.16720126,135.51,135.48,6.69721368]
[1765131039134,3.16720126,135.51,135.48,0.05501368]
[1765131044539,3.12,135.5,135.48,0.05501368]
[1765131045345,9.7617,135.5,135.48,0.05501368]
[1765131045645,3.12,135.49,135.48,0.05501368]
[1765131046237,3.12,135.47,135.42,9.1952]
[1765131046746,3.12,135.47,135.43,2.55]
[1765131047244,0.04735379,135.46,135.44,0.05241034]
[1765131047744,0.04735379,135.46,135.44,2.60241034]
[1765131048343,3.31735379,135.46,135.44,0.05241034]
[1765131049742,3.31735379,135.46,135.39,3.46423588]
[1765131049743,3.31735379,135.46,135.39,2.55]
[1765131050340,9.9141,135.45,135.39,9.1966]
[1765131050737,3.27,135.44,135.41,0.0476916]
[1765131053542,3.27,135.43,135.41,0.0476916]
[1765131053747,3.27,135.43,135.35,253.9067896]
[1765131053748,3.27,135.43,135.35,153.66765372]
[1765131054048,3.27,135.41,135.35,153.66765372]
[1765131054234,3.27,135.41,135.35,147.01895372]
[1765131054442,3.27,135.41,135.37,2.6]
[1765131054640,3.27,135.39,135.38,0.05194998]
[1765131059443,3.27,135.39,135.31,3.46423588]
[1765131059651,3.33,135.37,135.29,2.61]
[1765131060149,3.33,135.37,135.32,6.65]
[1765131060553,3.46423588,135.38,135.33,0.05059291]
[1765131060554,3.33,135.35,135.33,0.05059291]
[1765131060950,3.33,135.35,135.26,106.1028]
[1765131061751,3.33,135.35,135.28,106.0875]
[1765131062050,0.05019596,135.33,135.3,106.12827818]
[1765131062749,0.05019596,135.33,135.32,6.6503]
[1765131062951,0.05019596,135.33,135.3,106.12827818]
[1765131062952,3.38019596,135.33,135.3,0.05407818]
[1765131064056,3.46423588,135.32,135.26,6.653]
[1765131064260,3.33,135.31,135.26,6.653]
[1765131065059,3.33,135.31,135.27,6.6525]
[1765131065247,3.38652289,135.3,135.27,0.05663879]
[1765131065443,3.3826495,135.3,135.27,0.05097458]
[1765131065656,0.0526495,135.3,135.28,9.262]
[1765131065956,3.33,135.38,135.31,106.0634]
[1765131066851,5.55185867,135.38,135.31,108.28525867]
[1765131067047,5.55185867,135.38,135.34,6.6491]
[1765131067048,0.05022353,135.36,135.34,6.6491]
[1765131067353,3.38022353,135.36,135.34,6.6491]
[1765131068047,0.05022353,135.36,135.34,6.6491]
[1765131068250,3.38022353,135.36,135.33,0.05187285]
[1765131068957,0.05022353,135.36,135.34,6.6491]
[1765131069353,0.05022353,135.36,135.35,2.61]
[1765131069845,0.05022353,135.36,135.34,9.2591]
[1765131070052,0.05022353,135.36,135.34,6.6491]
[1765131070249,3.38022353,135.36,135.33,0.05187285]
[1765131071468,3.38022353,135.36,135.34,6.649]
[1765131072464,3.38022353,135.36,135.33,0.05187285]
[1765131074459,3.38022353,135.36,135.33,6.70147285]
[1765131079561,3.38022353,135.36,135.33,0.05187285]
[1765131080266,3.28,135.32,135.27,2.61]
[1765131081159,3.33120585,135.31,135.28,0.05183082]
[1765131081477,3.33120585,135.31,135.28,6.70393082]
[1765131084982,3.33120585,135.31,135.28,0.05183082]
[1765131085275,3.28,135.29,135.22,2.66]
[1765131085467,5.50185867,135.28,135.22,2.66]
[1765131085667,3.28,135.28,135.22,2.66]
[1765131086171,0.0519725,135.26,135.24,0.04810456]
[1765131086767,0.0519725,135.26,135.24,2.75810456]
[1765131086973,0.0519725,135.26,135.25,4.93185867]
[1765131088777,0.0519725,135.26,135.25,2.71]
[1765131089980,0.0519725,135.26,135.24,9.41200456]
[1765131090285,2.27383117,135.26,135.24,0.04810456]
[1765131090583,3.28,135.25,135.24,0.04810456]
[1765131091181,3.28,135.25,135.18,8.87895867]
[1765131091679,3.28,135.23,135.17,2.71]
[1765131091983,5.50185867,135.26,135.19,2.71]
[1765131092170,0.04776003,135.24,135.21,2.76247348]
[1765131093073,0.04776003,135.24,135.23,2.71]
[1765131096184,3.28,135.29,135.24,2.71]
[1765131097086,0.05368181,135.28,135.25,2.75909557]
[1765131098383,0.05368181,135.28,135.23,6.6544]
[1765131098384,3.28,135.27,135.21,6.6557]
[1765131098579,3.28,135.27,135.21,9.3657]
[1765131099392,3.28,135.27,135.23,0.04684009]
[1765131099981,6.70638181,135.28,135.23,2.75684009]
[1765131100294,0.05368181,135.28,135.24,2.71]
[1765131103399,3.33368181,135.28,135.23,0.04684009]
[1765131103599,3.33368181,135.28,135.23,2.75684009]
[1765131104488,3.28,135.27,135.23,2.75684009]
[1765131105496,0.05368181,135.28,135.23,2.75684009]
[1765131105685,0.05368181,135.28,135.25,2.71]
[1765131106090,0.05368181,135.28,135.25,9.3636]
[1765131106287,0.05368181,135.28,135.23,103.56064009]
[1765131106288,0.05368181,135.28,135.26,66.37]
[1765131106483,0.05368181,135.28,135.27,2.71]
[1765131106689,9.9287,135.36,135.28,2.71]
[1765131106885,63.66,135.38,135.28,106.1837]
[1765131107088,3.28,135.4,135.33,2.71]
[1765131107698,3.28754496,135.38,135.35,0.05314344]
[1765131110088,3.24,135.37,135.35,0.05314344]
[1765131114405,3.24,135.36,135.35,0.05314344]
[1765131123814,9.7281,135.37,135.35,0.05314344]
[1765131125112,3.08,135.36,135.35,0.05314344]
[1765131127111,6.6481,135.37,135.35,0.05314344]
[1765131127112,9.7281,135.37,135.35,0.05314344]
[1765131127320,0.04754496,135.38,135.35,2.76314344]
[1765131127617,3.12754496,135.38,135.35,2.76314344]
[1765131127819,0.04754496,135.38,135.35,2.76314344]
[1765131129023,0.04754496,135.38,135.36,2.71]
[1765131129407,3.12754496,135.38,135.35,6.70174344]
[1765131129610,3.12754496,135.38,135.35,0.05314344]
[1765131130118,3.08,135.36,135.3,2.71]
[1765131131225,3.13556401,135.34,135.32,0.05216914]
[1765131134427,3.08,135.32,135.25,6.6536]
[1765131134617,3.08,135.31,135.25,6.6536]
[1765131134923,3.08,135.3,135.24,2.71]
[1765131135523,3.13443635,135.28,135.26,0.05041452]
[1765131143235,3.13,135.27,135.26,0.05041452]
[1765131143630,0.05443635,135.28,135.26,2.76041452]
[1765131143840,0.05443635,135.28,135.26,0.05041452]
[1765131144038,3.18443635,135.28,135.26,0.05041452]
[1765131144935,0.05443635,135.28,135.26,2.76041452]
[1765131145840,0.05443635,135.28,135.27,2.71]
[1765131148540,0.05443635,135.28,135.26,9.41331452]
[1765131148935,0.05443635,135.28,135.27,2.71]
[1765131154243,3.18443635,135.28,135.26,6.70331452]
[1765131154452,3.18443635,135.28,135.26,0.05041452]
[1765131159343,9.83693635,135.28,135.26,0.05041452]
[1765131159549,3.13,135.27,135.26,0.05041452]
[1765131161861,3.13,135.26,135.2,9.366]
[1765131163063,3.18004782,135.24,135.22,0.05668616]
[1765131164459,9.83444782,135.24,135.22,0.05668616]
[1765131164758,3.13,135.23,135.22,0.05668616]
[1765131165253,3.13,135.22,135.17,148.01761261]
[1765131165461,3.13,135.22,135.17,145.30761261]
[1765131165659,3.13,135.22,135.16,6.658]
[1765131166073,3.13,135.22,135.16,9.368]
[1765131166260,3.1833754,135.2,135.18,0.04825053]
[1765131166560,3.18107717,135.2,135.18,0.04825053]
[1765131167355,0.05107717,135.2,135.18,2.75825053]
[1765131168565,0.05107717,135.2,135.18,9.41525053]
[1765131170468,0.05107717,135.2,135.19,2.72]
[1765131173469,3.09,135.25,135.2,2.67]
[1765131174360,3.09,135.23,135.21,0.05605618]
[1765131177269,0.05403961,135.24,135.21,2.71605618]
[1765131177565,3.40403961,135.24,135.21,0.05605618]
[1765131182967,10.05843961,135.24,135.21,0.05605618]
[1765131183270,3.35,135.23,135.21,0.05605618]
[1765131183473,3.35,135.22,135.17,63.64]
[1765131183674,3.35,135.22,135.17,66.3]
[1765131184771,3.40590642,135.21,135.18,0.05464561]
[1765131185072,3.40590642,135.21,135.18,2.71464561]
[1765131185473,0.05590642,135.21,135.18,2.71464561]
[1765131185671,6.88435794,135.21,135.18,0.05464561]
[1765131185877,3.35,135.2,135.18,0.05464561]
[1765131186381,3.40590642,135.21,135.18,2.71464561]
[1765131186584,3.40590642,135.21,135.18,9.37154561]
[1765131187372,0.05590642,135.21,135.19,2.66]
[1765131188875,0.05590642,135.21,135.2,2.66]
[1765131191673,0.05590642,135.21,135.19,6.6566]
[1765131191977,0.05590642,135.21,135.18,2.71464561]
[1765131193570,0.05590642,135.21,135.19,9.3167]
[1765131194776,3.40590642,135.21,135.18,0.05464561]
[1765131195477,3.35,135.19,135.18,0.05464561]
[1765131198378,3.35,135.19,135.14,2.66]
[1765131198580,3.35,135.19,135.11,63.64]
[1765131198581,3.12,135.17,135.11,70.3006]
[1765131198766,3.12,135.17,135.12,2.66]
[1765131199382,3.12,135.17,135.11,6.6606]
[1765131199383,0.0466619,135.16,135.13,2.70175578]
[1765131199770,3.1666619,135.16,135.13,2.70175578]
[1765131200173,3.1666619,135.16,135.13,0.04175578]
[1765131201573,3.1666619,135.16,135.13,2.70175578]
[1765131201780,3.1666619,135.16,135.13,0.04175578]
[1765131201973,0.0466619,135.16,135.13,2.70175578]
[1765131202489,0.0466619,135.16,135.15,2.66]
[1765131205882,3.12,135.19,135.16,2.66]
[1765131206183,3.12,135.19,135.15,4.88634474]
[1765131206383,3.12,135.19,135.15,2.66]
[1765131206974,3.17129219,135.18,135.16,0.0503407]
[1765131207676,0.05129219,135.18,135.16,2.7103407]
[1765131209087,0.05129219,135.18,135.17,2.66]
[1765131209587,41.14,135.2,135.19,2.66]
[1765131211592,3.12,135.19,135.16,11.59458544]
[1765131211776,3.12,135.19,135.16,2.7103407]
[1765131211981,3.12,135.19,135.16,0.0503407]
[1765131213187,9.7771,135.19,135.13,9.3195]
[1765131213485,44.26,135.2,135.15,2.66]
[1765131214085,0.04871873,135.19,135.16,2.71114871]
[1765131214491,3.16871873,135.19,135.16,2.71114871]
[1765131214878,0.04871873,135.19,135.16,2.71114871]
[1765131215083,0.04871873,135.19,135.16,4.93749345]
[1765131215278,0.04871873,135.19,135.17,2.66]
[1765131216395,0.04871873,135.19,135.18,2.66]
[1765131216896,0.04871873,135.19,135.17,6.6574]
[1765131216897,0.04871873,135.19,135.17,9.3174]
[1765131217889,0.04871873,135.19,135.18,2.66]
[1765131230204,38.26,135.23,135.2,2.66]
[1765131230404,41.5,135.23,135.2,2.66]
[1765131231008,41.5,135.23,135.2,9.316]
[1765131231208,41.55394756,135.23,135.2,9.37159954]
[1765131232311,3.24,135.22,135.2,0.05559954]
[1765131238001,3.24,135.22,135.2,2.71559954]
[1765131238198,3.24,135.22,135.2,0.05559954]
[1765131241314,38.31394756,135.23,135.2,2.71559954]
[1765131241507,38.31394756,135.23,135.21,2.66]
[1765131242318,38.31394756,135.23,135.22,66.28]
[1765131243416,41.48394756,135.23,135.2,2.71559954]
[1765131243612,3.17,135.22,135.2,0.05559954]
[1765131244214,5.39634474,135.22,135.2,0.05559954]
[1765131245216,38.31394756,135.23,135.2,2.71559954]
[1765131245520,38.31394756,135.23,135.21,2.66]
[1765131245826,38.31394756,135.23,135.22,2.66]
[1765131246316,38.31394756,135.23,135.22,4.88634474]
[1765131246714,38.31394756,135.23,135.22,2.66]
[1765131251027,38.31394756,135.23,135.22,66.26]
[1765131252924,38.31394756,135.23,135.22,2.66]
[1765131253225,38.31394756,135.23,135.22,66.26]
[1765131260431,24.87,135.27,135.26,6.6533]
[1765131260633,24.87,135.27,135.26,71.9533]
[1765131261131,3.17,135.33,135.29,6.6516]
[1765131261437,0.05014109,135.32,135.3,0.04709817]
[1765131261619,0.05014109,135.32,135.31,63.6]
[1765131266629,0.05014109,135.32,135.3,6.69799817]
[1765131266837,0.05014109,135.32,135.31,63.58]
[1765131267221,0.05014109,135.32,135.3,6.69799817]
[1765131267425,0.05014109,135.32,135.31,63.56]
[1765131272031,37.54,135.37,135.32,103.4501]
[1765131272432,40.71,135.37,135.32,103.4501]
[1765131272632,3.17,135.36,135.33,63.56]
[1765131273034,3.218994,135.36,135.33,63.61328592]
[1765131273231,6.6949076,135.36,135.33,0.05328592]
[1765131273440,3.17,135.35,135.27,125.36293524]
[1765131273640,3.17,135.35,135.28,63.54]
[1765131273841,3.17,135.35,135.29,6.6516]
[1765131274538,3.2244406,135.33,135.31,0.04987963]
[1765131274739,3.2244406,135.33,135.31,63.58987963]
[1765131275541,3.2244406,135.33,135.31,0.04987963]
[1765131278246,3.2244406,135.33,135.28,63.54]
[1765131278433,3.17,135.31,135.28,63.54]
[1765131279339,3.17,135.31,135.28,63.58859357]
[1765131281348,3.4759136,135.3,135.28,63.58859357]
[1765131281539,3.17,135.29,135.28,0.04859357]
[1765131283946,0.05482212,135.3,135.28,0.04859357]
[1765131284941,0.05482212,135.3,135.29,63.54]
[1765131294359,0.05482212,135.3,135.28,6.70059357]
[1765131294660,0.05482212,135.3,135.28,70.24059357]
[1765131295358,3.13482212,135.3,135.28,70.24059357]
[1765131295755,0.05482212,135.3,135.28,70.24059357]
[1765131298275,37.54,135.37,135.3,103.4608]
[1765131298457,37.54,135.37,135.31,63.54]
[1765131298658,40.62,135.37,135.31,63.54]
[1765131299167,3.08,135.36,135.32,6.6501]
[1765131299459,3.08,135.34,135.33,0.05445865]
[1765131300364,4.56,135.34,135.23,106.9928136]
[1765131300563,3.04,135.32,135.25,63.52]
[1765131301060,3.04,135.35,135.28,103.4803]
[1765131301271,0.05113331,135.33,135.3,0.04833835]
[1765131301459,0.05113331,135.33,135.31,6.6506]
[1765131302860,3.09113331,135.33,135.3,0.04833835]
[1765131307772,0.05113331,135.33,135.3,0.04833835]
[1765131308466,3.09113331,135.33,135.3,0.04833835]
[1765131309573,3.09113331,135.33,135.3,6.69943835]
[1765131310073,3.09113331,135.33,135.3,0.04833835]
[1765131310377,3.04,135.31,135.3,0.04833835]
[1765131310768,3.04,135.31,135.23,105.73711118]
[1765131310974,3.04,135.29,135.24,63.52]
[1765131311570,3.04,135.31,135.25,2.22231118]
[1765131311868,3.04,135.31,135.27,0.05412672]
[1765131311869,0.05654058,135.29,135.27,0.05412672]
[1765131312072,3.09654058,135.29,135.27,0.05412672]
[1765131322173,0.05654058,135.29,135.27,0.05412672]
[1765131322976,0.05654058,135.29,135.27,8.9290379]
[1765131323985,0.05654058,135.29,135.28,63.54]
[1765131324974,0.05654058,135.29,135.28,65.76231118]
[1765131325288,0.05654058,135.29,135.28,67.24231118]
[1765131325671,8.41,135.32,135.29,103.4716]
[1765131325878,28.98,135.34,135.31,2.22231118]
[1765131326186,4.135e-05,135.34,135.33,2.22231118]
[1765131326380,4.135e-05,135.34,135.33,8.87211118]
[1765131328275,4.135e-05,135.34,135.32,63.57444472]
[1765131328478,3.22004135,135.34,135.32,63.57444472]
[1765131329184,4.135e-05,135.34,135.32,63.57444472]
[1765131333484,3.27237887,135.35,135.32,0.05444472]
[1765131338489,3.27237887,135.35,135.28,6.652]
[1765131339391,3.27237887,135.35,135.3,0.04672695]
[1765131339591,9.92137887,135.35,135.3,0.04672695]
[1765131339796,3.22,135.34,135.3,0.04672695]
[1765131340596,9.8696,135.34,135.3,0.04672695]
[1765131340795,3.22,135.33,135.3,0.04672695]
[1765131345195,3.22,135.33,135.27,70.1525]
[1765131345196,3.22,135.31,135.27,63.5]
[1765131346398,3.22,135.29,135.28,0.04640503]
[1765131352001,0.04658196,135.3,135.28,0.04640503]
[1765131352304,3.15658196,135.3,135.28,0.04640503]
[1765131352902,3.11,135.29,135.23,24.65514461]
[1765131353109,3.11,135.27,135.22,1.0275]
[1765131353803,3.11,135.25,135.22,1.0275]
[1765131356809,0.05594006,135.26,135.23,8.87701118]
[1765131357109,3.16594006,135.26,135.23,8.87701118]
[1765131360708,0.05594006,135.26,135.24,6.6541]
[1765131363011,3.30594006,135.26,135.22,7.6824]
[1765131363703,3.30594006,135.26,135.22,1.0275]
[1765131367611,3.25,135.24,135.22,1.0275]
[1765131368016,0.05594006,135.26,135.22,1.0275]
[1765131368206,3.25,135.25,135.22,1.0275]
[1765131378520,3.35,135.24,135.22,1.0275]
[1765131379115,3.35,135.23,135.22,1.0275]
[1765131379622,10.005,135.23,135.16,70.178]
[1765131379929,0.04942004,135.21,135.16,63.52]
[1765131380126,3.39942004,135.21,135.16,63.52]
[1765131382326,3.39942004,135.21,135.16,70.1779]
[1765131382630,3.39942004,135.21,135.16,63.52]
[1765131384522,3.39942004,135.21,135.16,70.178]
[1765131384823,6.70532004,135.21,135.16,63.52]
[1765131385031,3.35,135.2,135.16,63.52]
[1765131385730,3.35,135.19,135.16,63.52]
[1765131386632,3.35,135.19,135.12,6.6598]